Workbook

Sheet 8417
A1: ORDER NO | B1: SL NO | C1: ITEM CODE | D1: PRODUCT | E1: QTY | F1: AMOUNT | G1: AMOUNT
A2: 8417 2012 | B2: 1 | C2: 12149443122 | D2: PRECIPATH U PLUS | E2: 12 | F2: 441 | G2: =E2*F2 -> 5292
A3: 8417 2012 | B3: 2 | C3: 11489232216 | D3: CHOLESTEROL | E3: 86 | F3: 123 | G3: =E3*F3 -> 10578
A4: 8417 2012 | B4: 3 | C4: 3607399190 | D4: BICARBONATE | E4: 21 | F4: 12 | G4: 252
A5: 8417 2012 | B5: 4 | C5: 11821792216 | D5: LIPASE | E5: 5 | F5: 956 | G5: 4780
A6: 8417 2012 | B6: 5 | C6: 12149435122 | D6: PRECINORM U PLUS | E6: 36 | F6: 27 | G6: 972
A7: 8417 2012 | B7: 6 | C7: 12172933122 | D7: ALKALINE PHOSPHATASE | E7: 12 | F7: 63 | G7: 756
A8: 8417 2012 | B8: 7 | C8: 12172623122 | D8: CFAS LIPIDS | E8: 14 | F8: 971 | G8: 13594
A9: 8417 2012 | B9: 8 | C9: 4528417190 | D9: CFAS HBA1C | E9: 200 | F9: 227 | G9: 45400
D10: TOTAL | G10: =SUM(G2:G9) -> 81624

Sheet 8241
A1: ORDER NO | B1: SL NO | C1: ITEM CODE | D1: PRODUCT | E1: QTY | F1: AMOUNT | G1: AMOUNT
A2: 8241 2012 | B2: 1 | C2: 20766682322 | D2: AMMONIA | E2: 12 | F2: 441 | G2: =E2*F2 -> 5292
A3: 8241 2012 | B3: 2 | C3: 4851013190 | D3: INSTC | E3: 86 | F3: 123 | G3: =E3*F3 -> 10578
A4: 8241 2012 | B4: 3 | C4: 4399803190 | D4: HDL C | E4: 21 | F4: 12 | G4: 252
A5: 8241 2012 | B5: 4 | C5: 4404483190 | D5: GLUCOSE | E5: 5 | F5: 956 | G5: 4780
A6: 8241 2012 | B6: 5 | C6: 3140622122 | D6: BILT 2 | E6: 2 | F6: 1076 | G6: 2152
A7: 8241 2012 | B7: 6 | C7: 5336163190 | D7: A1C2 | E7: 9 | F7: 120 | G7: 1080
A8: 8241 2012 | B8: 7 | C8: 3289923190 | D8: BICARBONATE | E8: 17 | F8: 970 | G8: 16490
A9: 8241 2012 | B9: 8 | C9: 4880994190 | D9: SCCS | E9: 200 | F9: 98 | G9: 19600
A10: 8241 2012 | B10: 9 | C10: 4460715190 | D10: UREA L | E10: 36 | F10: 27 | G10: 972
A11: 8241 2012 | B11: 10 | C11: 12172933122 | D11: ALKALINE PHOSPHATASE | E11: 12 | F11: 63 | G11: 756
A12: 8241 2012 | B12: 11 | C12: 12172623122 | D12: CFAS LIPIDS | E12: 14 | F12: 971 | G12: 13594
A13: 8241 2012 | B13: 12 | C13: 4528417190 | D13: CFAS HBA1C | E13: 200 | F13: 227 | G13: 45400
D14: TOTAL | G14: =SUM(G2:G13) -> 120946

Sheet 8249
A1: ORDER NO | B1: SL NO | C1: ITEM CODE | D1: PRODUCT | E1: QTY | F1: AMOUNT | G1: AMOUNT
A2: 8249 2012 | B2: 1 | C2: 12149435122 | D2: PRECINORM U PLUS | E2: 10 | F2: 144 | G2: =E2*F2 -> 1440
A3: 8249 2012 | B3: 2 | C3: 3121313122 | D3: PRECINORM PUC | E3: 5 | F3: 23 | G3: =E3*F3 -> 115
A4: 8249 2012 | B4: 3 | C4: 3121291122 | D4: PRECIPATH PUC | E4: 97 | F4: 12 | G4: 1164
A5: 8249 2012 | B5: 4 | C5: 3121313122 | D5: PRECINORM PUC | E5: 25 | F5: 956 | G5: 23900
A6: 8249 2012 | B6: 5 | C6: 4745736190 | D6: VITAMIN B12 | E6: 10 | F6: 1076 | G6: 10760
A7: 8249 2012 | B7: 6 | C7: 11877984216 | D7: NH3 | E7: 12 | F7: 120 | G7: 1440
A8: 8249 2012 | B8: 7 | C8: 4528328190 | D8: HEMOLYZING REAGENT | E8: 31 | F8: 970 | G8: 30070
A9: 8249 2012 | B9: 8 | C9: 20753009190 | D9: AMMONIA ABNORMAL | E9: 74 | F9: 98 | G9: 7252
A10: 8249 2012 | B10: 9 | C10: 11731459122 | D10: TSH | E10: 25 | F10: 27 | G10: 675
A11: 8249 2012 | B11: 10 | C11: 11488449122 | D11: PRECIPATH HBA1C | E11: 12 | F11: 63 | G11: 756
A12: 8249 2012 | B12: 11 | C12: 11731661122 | D12: FT4 CALSET | E12: 25 | F12: 971 | G12: 24275
A13: 8249 2012 | B13: 12 | C13: 4572459190 | D13: VITAMIN B12 CALSET | E13: 200 | F13: 227 | G13: 45400
D14: TOTAL | G14: =SUM(G2:G13) -> 147247

Sheet ORDER IN HAND
A1: ORDER NO | B1: ORDER DATE | C1: AMOUNT | D1: AMOUNT QRS | E1: DUE DATE
A2: 8417 2012 | B2: 2012-01-09 | C2: 81624 | D2: =C2*3.6502 -> 297943.9248 | E2: =B2+30 -> 2012-02-08
A3: 8241 2012 | B3: 2012-01-27 | C3: 120946 | D3: =C3*3.6502 -> 441477.0892 | E3: =B3+30 -> 2012-02-26
A4: 8249 2012 | B4: 2012-02-12 | C4: 147247 | D4: =C4*3.6502 -> 537480.9994 | E4: =B4+30 -> 2012-03-13
D16: =SUM(D2:D15) -> 1276902.013

Sheet Sheet8
B1: Invoice
A3: [Your Company Name] | F3: Date: | G3: =TODAY() -> 2012-03-08
A4: [Your Company Slogan Here] | F4: Invoice #:
F5: Order No
A8: To: | B8: [Name]
B9: [Company Name]
B10: [Street Address]
B11: [City, ST ZIP Code]
B12: [Phone]
A14: Salesperson | C14: Job | D14: Payment Terms | G14: Due Date
D15: Due upon receipt
A17: Item Code | B17: Description | E17: Qty | F17: Unit Price | G17: Total QAR
G18: =IF(SUM(E18)>0,SUM(E18*F18),"") -> 
G19: =IF(SUM(E19)>0,SUM(E19*F19),"") -> 
B22: =IF(A22="","", VLOOKUP(A22,$J$66:$K$292,2,FALSE)) ->  | C22: =IF(B22="","",VLOOKUP(B22,$K$66:$L$292,2,FALSE)) ->  | D22: =IF(A22="","",VLOOKUP(C22,$L$66:$N$292,3,FALSE)) -> 
B31: =IF(A31="","", VLOOKUP(A31,$J$66:$K$292,2,FALSE)) -> 
D38: =IF(A42="","",VLOOKUP(C38,$L$66:$N$292,3,FALSE)) -> 
F39: Subtotal | G39: =SUM(G18:G38) -> 0
F40: Discount
A41: =SpellCurr(G41) ->  | F41: Total | G41: =IF(SUM(G39)>0,SUM((G39-G40)),"") -> 
